Cogmind - Beta 13 @@@ ROGUE MODE // 2024.03.20 @ 02:16:08 Player: Rocko1345 Result: Destroyed by Autobeam Turret with Autobeam Performance ------------- Evolutions (0) 0 Regions Visited (2) 400 Robots Destroyed (22) 110 Value Destroyed (393) 393 Prototype IDs (4) 80 Alien Tech Used (0) 0 Bonus (0) 0 TOTAL SCORE: 983 Bonus ------- None Cogmind --------- Core Integrity 0/250 Matter 274/300 Energy 69/100 System Corruption 0% Temperature Cool (12) Movement Rolling (110) Location -10/Subcaves Parts ------- > --- POWER (1) -------- (None) > --- PROPULSION (2) --- Subdweller Monowheel Subdweller Monowheel > --- UTILITY (2) ------ Small Storage Unit Signal Interpreter > --- WEAPON (2) ------- EM Pulse Gun Ripper > --- INVENTORY (8) ---- Light Armor Plating Scrap Shield EM Pulse Gun Subdweller Machine Gun Battle Cannon Datajack Peak State ------------ > --- POWER ------------ Ion Engine > --- PROPULSION ------- Subdweller Monowheel Subdweller Monowheel > --- UTILITY ---------- Small Storage Unit Signal Interpreter > --- WEAPON ----------- Subdweller Machine Gun Ripper > --- INVENTORY -------- Light Armor Plating Scrap Shield EM Pulse Gun EM Pulse Gun Battle Cannon Datajack [Rating: 14] Favorites ----------- Power Ion Engine Engine Ion Engine Propulsion Light Treads Treads Light Treads Wheel Subdweller Monowheel Utility Small Storage Unit Storage Small Storage Unit Processor Signal Interpreter Protection Light Armor Plating Weapon EM Pulse Gun Energy Gun EM Pulse Gun Ballistic Gun Subdweller Machine Gun Ballistic Cannon Battle Cannon Slashing Weapon Ripper Special Melee Weapon Datajack Build | -11 -10 -10 ------- Run | Yrd Mat Sub Slots Evolved . | . . . Power . | . . . Propulsion . | . . . Utility . | . . . Weapon . | . . . Parts Attached 18 | 6 4 8 Power 1 | 1 . . Engine 1 | 1 . . Core . | . . . Reactor . | . . . Propulsion 4 | 2 . 2 Treads 2 | 2 . . Leg . | . . . Wheel 2 | . . 2 Hover . | . . . Flight . | . . . Utility 6 | 1 4 1 Device . | . . . Storage 2 | 1 . 1 Processor 1 | . 1 . Hackware . | . . . Protection 3 | . 3 . Artifact . | . . . Weapon 7 | 2 . 5 Energy Gun 3 | 2 . 1 Energy Cannon . | . . . Ballistic Gun 1 | . . 1 Ballistic Cannon 1 | . . 1 Launcher . | . . . Special Weapon . | . . . Impact Weapon . | . . . Slashing Weapon 1 | . . 1 Piercing Weapon . | . . . Special Melee Weapon 1 | . . 1 Unidentified Prototypes . | . . . Parts Lost 2 | . . 2 Power 1 | . . 1 Propulsion 1 | . . 1 Utility . | . . . Weapon . | . . . Highest Loss Streak 1 | . . 1 To Critical Strikes . | . . . Average Slot Usage (%) 98 | . 99 95 Engine 13 | . 14 11 Treads 25 | . 28 20 Wheel 1 | . . 5 Storage 14 | . 14 14 Processor 4 | . . 14 Protection 8 | . 12 . Energy Gun 22 | . 28 8 Ballistic Gun 1 | . . 6 Slashing Weapon 2 | . . 9 Naked Turns . | . . . Heaviest Build 17 | 14 17 17 Greatest Support 40 | 40 40 40 Greatest Overweight (x) . | . . . Average Overweight (x) . | . . . Largest Inventory Capacity 8 | 8 8 8 Average Capacity 7 | 6 8 8 Most Carried 8 | 5 3 8 Average Carried 3 | . 2 6 Final Capacity 8 | 8 8 8 Final Carried 7 | . 3 7 Class Distribution -------------------- 100% | Mutant Dominant Class ---------------- Mutant | -10/Materials Mutant | -10/Subcaves Resources | -11 -10 -10 ----------- Run | Yrd Mat Sub Matter Collected 378 | 238 52 88 Remotely . | . . . Salvage Created 524 | . 281 243 Parts 51 | . 28 23 Haulers Intercepted . | . . . Recyclers Shooed . | . . . Parts Field Recycled . | . . . Retrieved Matter . | . . . Parts Self-Destructed 12 | . . 12 Prevented . | . . . Kills | -11 -10 -10 ------- Run | Yrd Mat Sub Combat Hostiles Destroyed 17 | . 9 8 Melee 3 | . . 3 Guns 13 | . 9 4 AOE 1 | . . 1 Classes Destroyed 6 | . 4 2 Worker 1 | . 1 . Turret 1 | . . 1 Watcher 3 | . 3 . Swarmer 12 | . 8 4 Grunt 1 | . 1 . Subdweller 4 | . . 4 Best Kill Streak 5 | . 5 4 Combat Bots Only 4 | . 4 4 Max Kills in Single Turn 1 | . 1 1 Gunslinging . | . . . Exploded 1 | . . 1 Melee 1 | . . 1 Uniques/NPCs Destroyed . | . . . Combat | -11 -10 -10 -------- Run | Yrd Mat Sub Hostile Shots Fired 146 | . 20 126 Missed 61 | . 4 57 Damage Taken 888 | . 141 747 Core 252 | . 14 238 Absorbed by Shields . | . . . Redirected to Shielding 2 | . 2 . Core Remaining (%) 100 | 100 . . Volleys Fired 48 | . 20 28 Largest 2 | . 2 2 Hottest 80 | . 80 80 Shots Fired 75 | . 40 35 Gun 75 | . 40 35 Cannon . | . . . Launcher . | . . . Special . | . . . Kinetic 17 | . . 17 Thermal . | . . . Explosive . | . . . Electromagnetic 58 | . 40 18 Robot Hit Streak 8 | . 5 8 Robot Miss Streak 5 | . 5 1 Penetration Max . | . . . Secondary Targets . | . . . Shots Hit Robots 48 | . 17 31 Core Hits 26 | . 13 13 Critical Kills . | . . . Critical Parts Destroyed . | . . . Critical Strikes 2 | . 2 . Corrupt 2 | . 2 . Melee Attacks 5 | . . 5 Impact . | . . . Slashing 5 | . . 5 Piercing . | . . . Sneak Attacks . | . . . Combat Hostiles . | . . . Follow-up Attacks . | . . . Damage Inflicted 1013 | . 346 667 Guns 732 | . 291 441 Cannons . | . . . Explosions 139 | . 55 84 Melee 142 | . . 142 Ramming . | . . . Kinetic 286 | . . 286 Thermal 139 | . 55 84 Explosive . | . . . Electromagnetic 446 | . 291 155 Impact . | . . . Slashing 142 | . . 142 Piercing . | . . . Highest Corruption . | . . . Average Corruption . | . . . Corruption Purged . | . . . Corruption Blocked . | . . . Overload Shots . | . . . Overflow Damage . | . . . Projectiles . | . . . Explosions . | . . . Melee . | . . . Knockbacks . | . . . Impact . | . . . Kinetic . | . . . Secondary . | . . . Self-Inflicted Damage . | . . . Shots . | . . . Rammed . | . . . Targets Rammed . | . . . Kicked . | . . . Crushed . | . . . Highest Temperature 81 | . 81 . Average Temperature 32 | . 32 . Received Heat Transfer 282 | . 12 270 Siege Activations . | . . . Robots Corrupted . | . . . Combat Hostiles . | . . . Parts Fried 1 | . 1 . Impact Corruptions . | . . . Robots Melted . | . . . Combat Hostiles . | . . . Parts Melted . | . . . Heat Transferred 150 | . 100 50 Parts Sabotaged . | . . . Parts Stolen . | . . . Parts Stripped . | . . . Power Chain Reactions 2 | . 1 1 Alert | -11 -10 -10 ------- Run | Yrd Mat Sub Peak Influence 195 | . 195 . Initial . | . . . Average 43 | . 46 . Maximum Alert Level . | . . . Low Security (%) 100 | 100 100 . Level 1 . | . . . Level 2 . | . . . Level 3 . | . . . Level 4 . | . . . Level 5 . | . . . High Security . | . . . Max Security . | . . . Squads Dispatched 1 | . 1 . Investigation 1 | . 1 . Extermination . | . . . Reinforcement . | . . . Assault . | . . . Garrison . | . . . Intercept . | . . . Searches Triggered . | . . . Construction Impeded . | . . . Haulers Reinforced . | . . . Active Scanning Responses . | . . . Cargo Convoy Interrupts . | . . . Stealth | -11 -10 -10 --------- Run | Yrd Mat Sub Distress Signals 1 | . 1 . Communications Jammed . | . . . Distress Signals . | . . . Times Spotted 64 | . 15 49 Peak Tracking Total 4 | . 4 4 Tactical Retreats 6 | . 2 4 Traps | -11 -10 -10 ------- Run | Yrd Mat Sub Traps Triggered 1 | . 1 . Indirectly . | . . . Trap Hack Attempts . | . . . Triggered . | . . . Disarmed . | . . . Reprogrammed . | . . . Reused . | . . . Traps Extracted . | . . . Installed . | . . . Triggered . | . . . Machines | -11 -10 -10 ---------- Run | Yrd Mat Sub Machines Disabled 1 | . . 1 Max in Single Turn 1 | . . 1 Machines Repaired . | . . . Machines Dismantled . | . . . Machines Sabotaged . | . . . Overloaded Fab Kills . | . . . Hacking | -11 -10 -10 --------- Run | Yrd Mat Sub Machines Accessed 4 | . 4 . Terminals 4 | . 4 . Fabricators . | . . . Repair Stations . | . . . Recycling Units . | . . . Scanalyzers . | . . . Garrison Access . | . . . Total Hacks 12 | . 12 . Successful 8 | . 8 . Failed 4 | . 4 . Catastrophic 1 | . 1 . Database Lockouts . | . . . Manual 4 | . 4 . Terminals 12 | . 12 . Fabricators . | . . . Repair Stations . | . . . Recycling Units . | . . . Scanalyzers . | . . . Garrison Access . | . . . Terminal Hacks 6 | . 6 . Prototype ID Bank 2 | . 2 . Branch Access Points 1 | . 1 . Emergency Access Points 1 | . 1 . Terminal Index 1 | . 1 . Locate Traps 1 | . 1 . Fabricator Hacks . | . . . Repair Station Hacks . | . . . Recycling Unit Hacks . | . . . Scanalyzer . | . . . Garrison Access Hacks . | . . . Unauthorized Hacks 2 | . 2 . Terminals 2 | . 2 . Botnet 2 | . 2 . Fabricators . | . . . Repair Stations . | . . . Recycling Units . | . . . Scanalyzers . | . . . Garrison Access . | . . . Data Cores Recovered . | . . . Used . | . . . Hacking Detections 4 | . 4 . Full Trace Events . | . . . Feedback Events . | . . . Feedback Blocked . | . . . Robot Schematics Acquired . | . . . Robots Built . | . . . Authchips . | . . . Time . | . . . Total Robot Build Rating . | . . . Part Schematics Acquired . | . . . Parts Built . | . . . Authchips . | . . . Time . | . . . Total Part Build Rating . | . . . Parts Repaired . | . . . Time . | . . . Parts Recycled . | . . . Recycled Matter . | . . . Retrieved Matter . | . . . Retrieved Components . | . . . Parts Scanalyzed . | . . . Part Schematics Acquired . | . . . Parts Damaged . | . . . Bothacking | -11 -10 -10 ------------ Run | Yrd Mat Sub Used RIF Installer . | . . . Robots Hacked . | . . . Non-combat . | . . . Combat . | . . . Robot Hacks Applied . | . . . Relay Couplers Released . | . . . Fabnet Peak Effective % . | . . . Robots Rewired . | . . . Allies Hacked . | . . . Hacks Repelled . | . . . Allies | -11 -10 -10 -------- Run | Yrd Mat Sub Total Allies . | . . . Largest Group . | . . . Highest-Rated Group . | . . . Highest-Rated Ally . | . . . Total Orders . | . . . Ally Attacks . | . . . Total Damage . | . . . Kills . | . . . Allies Corrupted . | . . . Allies Melted . | . . . Intel | -11 -10 -10 ------- Run | Yrd Mat Sub Robot Analysis Total . | . . . Derelict Logs Recovered . | . . . Drone Launches . | . . . Drone Recoveries . | . . . Exploration | -11 -10 -10 ------------- Run | Yrd Mat Sub Turns Passed 1889 | 69 1272 548 Spaces Moved 828 | 57 468 303 Core 30 | 30 . . Treads 716 | 27 468 221 Legs . | . . . Wheels 82 | . . 82 Hover . | . . . Flight . | . . . Fastest Speed 50 | 50 160 110 Average Speed 151 | 102 160 146 Slowest Speed 160 | 160 160 160 Overloaded Moves . | . . . Propulsion Burnouts . | . . . Robots Hopped . | . . . Cave-ins Triggered . | . . . Exploration Rate (%) 28 | 4 67 14 Regions Visited 2 Branch Regions 1 Pre-discovered Areas . | . . . Known Exits Taken 1 | . 1 . Unknown Exits Taken 1 | 1 . . Scrap Searched 1 | . . 1 Spaces Dug . | . . . Terrain Destroyed 5 | . . 5 Melee . | . . . Projectile . | . . . AOE 5 | . . 5 Terrain Rammed . | . . . Walls Destroyed . | . . . Machines Disabled . | . . . Actions | -11 -10 -10 --------- Run | Yrd Mat Sub Total 1382 | 68 951 363 Wait 463 | . 455 8 Move 826 | 56 467 303 Hop . | . . . Pick Up 17 | 6 4 7 Fast Attach . | . . . Attach 10 | 6 2 2 Detach 1 | . 1 . Swap 8 | . 2 6 Drop 4 | . . 4 Fire 48 | . 20 28 Melee 5 | . . 5 Ram . | . . . Kick . | . . . Crush . | . . . Escape Stasis . | . . . Rewire . | . . . Trap . | . . . Miscellaneous . | . . . Route ------- -11/Scrapyard -10/Materials (discovered 6 exits: *Mat x3 / *Min x2 / *Sub) -10/Subcaves (discovered 1 exit: [*Rec]) History --------- Turn | Location | Event 4 | -11/Scrapyard | Discovered new exit (range 16) 70 | -11/Scrapyard | Entered Materials 250 | -10/Materials | Discovered new exit (range 15) 315 | -10/Materials | Build established: Mutant 540 | -10/Materials | Discovered new exit (range 13) 626 | -10/Materials | Discovered new exit (range 16) 692 | -10/Materials | Identified exit to Mines 713 | -10/Materials | Discovered new exit (range 14) 1217 | -10/Materials | Discovered new exit (range 8) 1283 | -10/Materials | Identified exit to Subcaves 1302 | -10/Materials | Identified exit to Materials 1342 | -10/Materials | Entered Subcaves 1498 | -10/Subcaves | Shifting Twisted Machinery released Ripper 1568 | -10/Subcaves | Ambushed by Subdweller buried in earth 1568 | -10/Subcaves | Ambushed by Subdweller buried in earth 1573 | -10/Subcaves | Shifting Twisted Machinery released Sub. Machine Gun 1690 | -10/Subcaves | Discovered new exit (range 15) 1691 | -10/Subcaves | Core integrity fell below 50% 1829 | -10/Subcaves | Core integrity fell below 20% 1890 | -10/Subcaves | Destroyed by Autobeam Turret with Autobeam Last Messages --------------- 01707_ Lgt. Ion Engine fries itself beyond repair. 01707_ S-10 Pest destroyed. 01708_ Flight Unit fries itself beyond repair. 01713_ Destroyed Lgt. Ion Engine. 01715_ S-10 Pest destroyed. 01717_ Lgt. Ion Engine fries itself beyond repair. 01717_ Acquired 12 matter. 01757_ Dropped Sml. Storage Unit. 01762_ Acquired 9 matter. 01765_ Dropped Core Shielding. 01769_ Acquired Sub. Monowheel. 01771_ Dropped Lgt. Treads. 01776_ Acquired 14 matter. 01780_ Acquired Sub. Monowheel. 01819_ Ion Engine destroyed. 01828_ Autobeam Turret destroyed. 01832_ Machine disabled. 01834_ Sub. Machine Gun shoots sparks and powers down. 01838_ Acquired 13 matter. 01839_ Acquired 10 matter. Map ----- +----------------------------------------------------+ | ## # # ### ## ### ????? | | # ## [& ### #? ## ???? | | ### "*%& ##?# ### # ????? | | ## !%!& ##?## % ## ##"" #???? | | ## ### &[!"####?## ## ##"" ?????? | | ##### ## #####???## # " #??????????? | | ### ##?????### " #??????????? | | # #### ## ##?????# ## ##?????????? | | # ##""##"##" #?????# ## ###### ##????????? | | # "$$"# # """##?????####?###????## #????????? | | # $$ # ##??#####<##?????????## #????????? | | ##???#""" ""??????????## #????????? | | "#######" " ???????????? #???????? | | & ""### ##" t %???????????? ??????? | | ! & "#?# # ???????#???? ?????? | | ! [!= "### # & ?????? #???? ## ##????? | | && "#? %[????? #???? ##?##?????? | | &%# ##?# ###??# ###??##?????????? | | ##" ## = #?# ### #?????????????? | | " ### ### #### # ?????????? | | """ ######?#" ### % ????????? | | ##### #??????## ### ## ????????? | | ??## #??????## #?### ##????????????????????? | | ?## ??????# ##??## % #?????????????????????? | | ?# ?????## #### % #?????????????????????? | | ??# ??????# @ ##????????????????????? | | ???# ????## #????????????????????? | | ?????# ##### ## #???????????????????? | | ??????## ## ### #???????????????????? | | ????#### #### ##?# #???????????????????? | | ????# ##??#####??# ??????????????????? | | ????## #??????????## ?????????????????? | | ?????## ##???????????? ????????????????? | | ??????## ##????????????? ???????????????? | | ???????## ###?????????????? ??????????????? | | ????????##????????????????? ?????????????? | | ??????????????????????????? ### ?????????????? | | ??????????????????????????? #??# ??????????????? | | ??????????????????????????? #??????????????????? | | ????????????????????????????? ???????????????????? | | ?????????????????????????????????????????????????? | | ?????????????????????????????????????????????????? | | ?????????????????????????????????????????????????? | | ?????????????????????????????????????????????????? | | ?????????????????????????????????????????????????? | | ?????????????????????????????????????????????????? | | ?????????????????????????????????????????????????? | | ?????????????????????????????????????????????????? | | ?????????????????????????????????????????????????? | | ?????????????????????????????????????????????????? | +----------------------------------------------------+ Best States ------------- Heat Dissipation 25 Energy Generation 10 Energy Capacity 250 Matter Stores 300 Matter Capacity 300 Sight Range 16 Terrain Scan Density 10 Armor Coverage 150 Core Shielding 20 Evasion (%) 50 Recoil Reduction 2 Item Schematics ----------------- None Robot Schematics ------------------ None Fabricated ------------ Nothing Alien Tech Used ----------------- None Achievements -------------- None Challenges ------------ None Game ------ Seed IntegrityBehemothKatana Manual? 0 Play Time 00:12:54 Cumulative 188.7 hours Start 2024.03.20 @ 02:03:39 End 2024.03.20 @ 02:16:08 Sessions 1 Manual Loads 0 Difficulty Rogue Special Mode None Game No. 220 Rogue 46 Adventurer 174 Explorer 0 Win Type - Total 1 Types 1/0/0/0/0/0/0/0/0 Lore% 60 Gallery% 67 Achievement% 51 Wizard Run 0 Options --------- Layout 0 ASCII 0 Keyboard 0 Movement Numpad Keybinds 0 Fullscreen 1 Font 18/SmallcapsGlow Map View 76x50 Zoom Use 0% Tactical HUD 1 Map Filters NONE Filters NONE Steam 1 RUN: 025c16f4-4b43-42a6-aa29-14569f48d2e0